bitfinex/quotes_ETHUSD_20241123
["timestamp","ask_amount","ask_price","bid_price","bid_amount"]
[1732395375087,2.93866,3403.0,3402.4,0.8327]
[1732395375571,2.93867,3402.9,3402.4,0.8327]
[1732395376262,2.93843,3403.2,3402.4,3.77179]
[1732395376466,2.93863,3403.0,3402.4,3.77179]
[1732395377288,0.03673268,3403.2,3402.4,0.8327]
[1732395377470,2.93898,3402.6,3402.4,0.8327]
[1732395377964,0.7974,3402.8,3402.1,0.8327]
[1732395378164,2.9392,3402.3,3401.8,0.8327]
[1732395378409,2.93927,3402.2,3401.8,0.8327]
[1732395378765,0.03674067,3402.7,3401.8,0.8327]
[1732395379001,2.93946,3402.0,3401.8,0.8327]
[1732395379305,2.93933,3402.2,3401.8,0.8327]
[1732395380164,0.7974,3402.8,3401.9,2.93951]
[1732395380165,2.939,3402.6,3401.9,2.93951]
[1732395380572,2.93917,3402.4,3401.8,0.8327]
[1732395380801,5.87834,3402.4,3401.8,0.8327]
[1732395381107,2.93924,3402.3,3401.8,0.8327]
[1732395382584,2.93901,3402.5,3401.8,0.8327]
[1732395382802,2.93945,3402.0,3401.8,0.8327]
[1732395383006,2.93962,3401.8,3401.5,0.8327]
[1732395383733,2.93945,3402.0,3401.5,0.8327]
[1732395383931,2.93937,3402.1,3401.5,3.77257]
[1732395384605,2.9392,3402.3,3401.6,2.93979]
[1732395384793,0.7974,3402.5,3401.6,2.93979]
[1732395384794,2.93929,3402.2,3401.6,2.93979]
[1732395385118,2.93929,3402.2,3401.7,0.8327]
[1732395385310,2.93904,3402.5,3401.7,3.77239]
[1732395385508,2.93904,3402.5,3401.8,2.93959]
[1732395386008,2.93911,3402.4,3401.9,0.8327]
[1732395386995,2.93919,3402.3,3401.9,0.8327]
[1732395387423,2.93941,3402.1,3401.4,0.8327]
[1732395387834,2.93949,3402.0,3401.4,0.8327]
[1732395388034,2.93937,3402.1,3401.4,3.77264]
[1732395388334,2.93903,3402.5,3401.6,2.93978]
[1732395388513,2.93933,3402.2,3401.4,0.8327]
[1732395388697,2.93933,3402.2,3401.5,2.93986]
[1732395388899,2.93911,3402.4,3401.6,2.93977]
[1732395389142,2.93911,3402.4,3401.8,0.8327]
[1732395389441,2.93895,3402.6,3401.9,2.93951]
[1732395389603,0.55,3402.5,3401.9,2.93951]
[1732395389799,0.55,3402.5,3401.8,0.8327]
[1732395389996,2.93905,3402.5,3401.8,3.7723]
[1732395390232,2.93905,3402.5,3401.8,0.8327]
[1732395390434,6.48889,3402.7,3401.9,2.93952]
[1732395390652,2.93898,3402.6,3401.9,2.93952]
[1732395391216,2.93905,3402.5,3402.0,0.8327]
[1732395391436,3.48889,3402.7,3402.0,0.8327]
[1732395391656,3.7974,3403.0,3402.4,2.9391]
[1732395391657,2.93859,3403.0,3402.4,2.9391]
[1732395391815,2.93841,3403.2,3402.5,0.7792]
[1732395392015,2.93841,3403.2,3402.5,3.71821]
[1732395392325,0.89724263,3403.6,3402.7,2.93881]
[1732395392526,0.89724263,3403.6,3402.8,0.7792]
[1732395392527,0.14074263,3403.6,3402.8,0.7792]
[1732395392857,2.93818,3403.5,3402.8,0.7792]
[1732395393148,0.14074263,3403.6,3402.8,3.71793]
[1732395393357,0.14074263,3403.6,3403.0,0.7792]
[1732395393910,3.07886263,3403.6,3403.0,0.7792]
[1732395394712,0.14074263,3403.6,3403.0,0.7792]
[1732395395228,0.14074263,3403.6,3403.0,3.71774]
[1732395395441,2.93821,3403.5,3403.0,0.7792]
[1732395395839,3.07888263,3403.6,3403.0,0.7792]
[1732395396237,2.93817,3403.5,3403.0,0.7792]
[1732395396554,2.93838,3403.3,3403.0,0.7792]
[1732395396859,2.93849,3403.1,3403.0,0.7792]
[1732395397351,2.93849,3403.1,3402.5,0.7792]
[1732395397716,2.93851,3403.1,3402.5,0.7792]
[1732395397914,2.93837,3403.3,3402.6,3.0]
[1732395398164,2.93831,3403.4,3402.6,3.0]
[1732395398165,2.93848,3403.2,3402.6,3.0]
[1732395398364,2.93854,3403.1,3402.6,3.0]
[1732395398517,2.93862,3403.0,3402.5,0.7792]
[1732395398722,2.98203803,3403.0,3402.5,0.7792]
[1732395398934,0.04341803,3403.0,3402.5,0.7792]
[1732395399149,0.04341803,3403.0,3402.6,3.0]
[1732395399336,2.93826,3403.4,3402.6,3.0]
[1732395399539,0.04334421,3402.9,3402.6,3.0]
[1732395399747,0.55,3403.1,3402.6,3.0]
[1732395399947,0.04327038,3402.8,3402.6,3.0]
[1732395400151,0.55,3403.1,3402.6,3.0]
[1732395400357,0.04319654,3402.7,3402.6,3.0]
[1732395400867,0.04319654,3402.7,3402.5,3.71821]
[1732395400868,0.55,3403.1,3402.5,0.7792]
[1732395401047,0.04319654,3402.7,3402.5,0.7792]
[1732395401220,2.93878,3402.8,3402.5,0.7792]
[1732395401425,0.04319654,3402.7,3402.5,0.7792]
[1732395401644,2.93878,3402.8,3402.5,0.7792]
[1732395401955,0.0431227,3402.6,3402.5,0.7792]
[1732395402156,0.55,3402.9,3402.5,0.7792]
[1732395402363,0.04324626,3402.6,3402.5,0.7792]
[1732395402522,3.48867,3402.9,3402.5,0.7792]
[1732395402722,0.04324626,3402.6,3402.5,0.7792]
[1732395402946,0.55,3402.9,3402.5,0.7792]
[1732395403254,3.48871,3402.9,3402.5,0.7792]
[1732395403457,0.04339393,3402.8,3402.5,0.7792]
[1732395404962,2.52682393,3403.2,3402.5,3.71813]
[1732395405126,2.93851,3403.1,3402.6,0.7792]
[1732395405647,2.93867,3402.9,3402.6,0.7792]
[1732395407455,3.07885263,3403.6,3402.6,0.7792]
[1732395407456,2.93858,3403.0,3402.6,0.7792]
[1732395407659,0.55,3403.5,3402.6,0.7792]
[1732395407828,2.93848,3403.2,3402.6,0.7792]
[1732395408024,2.93857,3403.1,3402.6,0.7792]
[1732395408537,2.93866,3403.0,3402.6,0.7292]
[1732395409972,0.55,3403.1,3402.6,0.7292]
[1732395410130,3.48849,3403.1,3402.6,0.7292]
[1732395410658,2.93859,3403.0,3402.6,0.7292]
[1732395411761,2.93876,3402.8,3402.6,0.7292]
[1732395412365,2.93859,3403.0,3402.6,0.7292]
[1732395412954,2.93873,3402.9,3402.6,0.7292]
[1732395413556,2.93859,3403.0,3402.6,0.7292]
[1732395414294,2.93869,3402.9,3402.6,0.7292]
[1732395416279,2.9385,3403.1,3402.6,0.7292]
[1732395416583,0.17747429,3403.6,3402.6,0.7292]
[1732395416803,0.17747429,3403.6,3402.8,2.9387]
[1732395416804,2.93824,3403.4,3402.8,2.9387]
[1732395417101,2.93841,3403.2,3402.9,0.7782]
[1732395419880,2.93825,3403.4,3402.9,0.7782]
[1732395420698,3.07881263,3403.6,3402.9,0.7782]
[1732395421013,2.93831,3403.4,3402.9,0.7782]
[1732395421175,2.93844,3403.2,3402.9,0.7782]
[1732395422619,2.93874,3402.9,3402.5,0.7782]
[1732395422969,2.93878,3402.8,3402.5,0.7782]
[1732395423209,2.93874,3402.9,3402.5,0.7782]
[1732395423506,2.93849,3403.1,3402.5,0.7782]
[1732395424086,2.93849,3403.1,3402.5,3.7172]
[1732395424286,2.93849,3403.1,3402.6,2.93892]
[1732395424610,2.93861,3403.0,3402.5,3.7172]
[1732395425014,2.93861,3403.0,3402.5,0.7782]
[1732395425573,2.93877,3402.8,3402.5,0.7782]
[1732395425773,2.93861,3403.0,3402.5,0.7782]
[1732395426712,2.93841,3403.2,3402.6,2.93886]
[1732395427680,2.93858,3403.0,3402.5,0.7782]
[1732395427911,2.93841,3403.2,3402.5,3.71721]
[1732395428107,2.93841,3403.2,3402.5,0.7782]
[1732395428310,2.93858,3403.0,3402.5,0.7782]
[1732395428888,2.93841,3403.2,3402.5,0.7782]
[1732395429130,2.93841,3403.2,3402.6,2.93887]
[1732395429420,2.93841,3403.2,3402.5,0.7782]
[1732395429723,2.9389,3402.7,3402.5,0.7782]
[1732395429888,3.526659,3402.7,3402.2,0.79853261]
[1732395430075,2.93918,3402.3,3402.2,0.02033261]
[1732395430517,5.93918,3402.3,3402.2,0.02033261]
[1732395430802,2.93918,3402.3,3402.2,0.02033261]
[1732395431113,3.90058001,3402.3,3402.2,0.02033261]
[1732395431611,6.90058001,3402.3,3402.2,0.02033261]
[1732395431913,5.865725,3402.3,3402.2,0.02033261]
[1732395432080,2.865725,3402.3,3402.2,0.02033261]
[1732395432677,7.227525,3402.3,3402.2,0.02033261]
[1732395436584,4.227525,3402.3,3402.2,0.02033261]
[1732395436991,3.415725,3402.3,3402.2,0.02033261]
[1732395437395,4.17460676,3402.3,3402.2,0.02033261]
[1732395437713,3.62460676,3402.3,3402.2,0.02033261]
[1732395437897,2.865725,3402.3,3402.2,0.02033261]
[1732395438917,2.90246753,3402.3,3402.2,0.02033261]
[1732395439127,3.45246753,3402.3,3402.2,0.02033261]
[1732395439288,4.26426753,3402.3,3402.2,0.02033261]
[1732395440028,4.227525,3402.3,3402.2,0.12033261]
[1732395440182,2.865725,3402.3,3402.2,0.12033261]
[1732395444093,2.865725,3402.3,3402.2,0.93633261]
[1732395444293,2.93917,3402.4,3402.2,0.93633261]
[1732395444696,2.93918,3402.3,3402.2,0.93633261]
[1732395445100,2.93918,3402.3,3402.2,0.12033261]
[1732395446004,2.9759196,3402.3,3402.2,0.12033261]
[1732395446204,4.38381956,3402.3,3402.2,0.12033261]
[1732395446425,4.93381956,3402.3,3402.2,0.12033261]
[1732395449247,7.93381956,3402.3,3402.2,0.12033261]
[1732395449400,7.89707996,3402.3,3402.2,0.12033261]
[1732395451253,5.93918,3402.3,3402.2,0.12033261]
[1732395452858,6.52592503,3402.3,3402.2,0.12033261]
[1732395453159,6.48918,3402.3,3402.2,0.12033261]
[1732395453322,5.93918,3402.3,3402.2,0.12033261]
[1732395453933,2.93918,3402.3,3402.2,0.12033261]
[1732395454322,2.93908,3402.5,3402.2,0.12033261]
[1732395454323,0.55,3402.5,3402.2,0.12033261]
[1732395454671,2.93916,3402.4,3402.2,0.12033261]
[1732395455023,2.93917,3402.4,3402.2,0.12033261]
[1732395455331,2.97592304,3402.3,3402.2,0.12033261]
[1732395457529,4.1571393,3402.3,3402.2,0.12033261]
[1732395460560,0.8175,3402.0,3400.9,0.807]
[1732395460894,2.94071,3400.6,3400.0,2.94117]
[1732395461045,2.94057,3400.7,3400.1,3.74806]
[1732395461241,2.94066,3400.6,3400.1,0.807]
[1732395461470,2.94059,3400.7,3400.1,3.74807]
[1732395462186,0.55,3401.1,3400.1,3.74807]
[1732395462399,2.94032,3401.0,3400.2,2.941]
[1732395462572,0.55,3401.3,3400.1,0.807]
[1732395462573,2.94056,3400.8,3400.1,0.807]
[1732395462884,2.94056,3400.8,3400.1,3.74802]
[1732395463251,2.94056,3400.8,3400.2,2.941]
[1732395463469,2.94034,3401.0,3400.1,0.807]
[1732395463645,2.94034,3401.0,3400.2,2.94091]
[1732395463843,0.55,3401.3,3400.3,2.94089]
[1732395463844,2.94039,3400.9,3400.3,2.94089]
[1732395464359,2.94039,3400.9,3400.2,2.94099]
[1732395464869,2.94047,3400.9,3400.2,2.94099]
[1732395465070,2.97681653,3401.3,3400.4,2.9408]
[1732395465270,2.94031,3401.0,3400.4,2.9408]
[1732395465700,0.03675653,3400.9,3400.3,0.807]
[1732395465874,2.94048,3400.8,3400.3,0.807]
[1732395466406,0.03675656,3400.9,3400.4,2.94082]
[1732395466619,2.94033,3401.0,3400.4,2.94082]
[1732395467592,2.94033,3401.0,3400.5,0.807]
[1732395468000,0.03675656,3401.3,3400.5,0.807]
[1732395468167,2.94045,3400.9,3400.5,0.807]
[1732395468713,2.94036,3401.0,3400.5,0.807]
[1732395470007,2.94041,3400.9,3400.5,0.807]
[1732395470209,2.94031,3401.0,3400.5,0.807]
[1732395473321,0.03675659,3400.9,3400.5,0.807]
[1732395473615,2.94031,3401.0,3400.5,0.807]
[1732395473771,0.0367566,3400.9,3400.5,0.807]
[1732395473969,2.9771566,3400.9,3400.5,0.807]
[1732395474897,2.9771566,3400.9,3400.1,0.7786]
[1732395474898,0.62848726,3400.9,3400.1,0.7786]
[1732395475098,0.8471566,3400.9,3400.1,0.7786]
[1732395475272,2.94072,3400.6,3400.1,0.7786]
[1732395476221,2.94057,3400.7,3400.1,3.71966]
[1732395476375,6.44090089,3401.4,3400.3,3.7195]
[1732395476376,0.8104,3401.2,3400.3,3.7195]
[1732395476778,2.94028,3401.1,3400.5,2.94072]
[1732395477274,2.94031,3401.0,3400.3,3.7195]
[1732395477567,0.03675674,3400.9,3400.3,3.7195]
[1732395477785,2.94031,3401.0,3400.4,2.94082]
[1732395478167,2.94023,3401.1,3400.4,2.94082]
[1732395478334,2.94023,3401.1,3400.7,0.7786]
[1732395479170,1.486136,3401.4,3400.7,0.7786]
[1732395479335,2.94026,3401.1,3400.7,0.7786]
[1732395479773,2.94005,3401.3,3400.7,0.7786]
[1732395479997,2.94005,3401.3,3400.7,3.71917]
[1732395481101,0.03675373,3401.2,3400.7,3.71917]
[1732395481279,2.94005,3401.3,3400.7,3.71917]
[1732395482446,2.94026,3401.1,3400.7,0.7786]
[1732395483352,0.03675378,3401.2,3400.7,0.7786]
[1732395483764,2.93991,3401.5,3400.8,2.94047]
[1732395483961,2.94006,3401.3,3400.7,0.7786]
[1732395485448,2.94006,3401.3,3400.7,3.71917]
[1732395485847,2.97672323,3401.4,3400.7,3.71917]
[1732395486287,2.93997,3401.4,3400.7,3.71917]
[1732395486493,0.03675324,3401.3,3400.7,3.71917]
[1732395487187,2.93997,3401.4,3400.7,3.71917]
[1732395487360,2.93974,3401.7,3400.9,2.94038]
[1732395487564,0.8104,3402.0,3401.2,0.7786]
[1732395487766,3.74989,3402.0,3401.2,0.7786]
[1732395487968,0.77402457,3401.9,3401.3,2.93998]
[1732395488181,0.03674949,3401.9,3401.3,2.93998]
[1732395488783,2.93949,3402.0,3401.3,2.93998]
[1732395489317,2.93949,3402.0,3401.2,3.71865]
[1732395489818,3.52540048,3402.2,3401.4,2.93994]
[1732395490308,3.52540048,3402.2,3401.5,0.7786]
[1732395490459,2.93924,3402.3,3401.4,2.93994]
[1732395490658,2.9391,3402.4,3401.6,0.7786]
[1732395490857,2.93896,3402.6,3401.9,0.7786]
[1732395491097,2.93903,3402.5,3401.9,0.7786]
[1732395493475,0.03674129,3402.4,3401.9,0.7786]
[1732395493682,2.93903,3402.5,3401.9,0.7786]
[1732395494186,2.939,3402.6,3401.9,0.7786]
[1732395494391,2.93916,3402.4,3401.9,0.7786]
[1732395494886,2.93925,3402.3,3401.9,0.7786]
[1732395495358,2.93944,3402.0,3401.9,0.7786]
[1732395495572,0.374936,3402.5,3401.9,0.7786]
[1732395495817,0.61757647,3402.4,3401.9,0.7786]
[1732395495994,2.93927,3402.2,3401.9,0.7786]
[1732395496180,2.93937,3402.1,3401.9,0.7786]
[1732395496717,2.88140904,3402.1,3401.9,0.7786]
[1732395496883,2.93912,3402.4,3401.9,0.7786]
[1732395497400,2.93903,3402.5,3401.9,0.7786]
[1732395497605,2.93928,3402.2,3401.9,0.7786]
[1732395498111,2.9391,3402.4,3401.9,0.7786]
[1732395498618,2.93884,3402.7,3401.9,0.7786]
[1732395498794,2.93903,3402.5,3401.9,0.7786]
[1732395499327,0.58370418,3402.6,3401.9,0.7786]
[1732395499481,2.96593752,3403.6,3402.4,3.74014]
[1732395499482,2.93844,3403.2,3402.4,3.74014]
[1732395499680,2.9385,3403.1,3402.4,3.74019]
[1732395500596,2.9385,3403.1,3402.5,0.8011]
[1732395501693,2.93842,3403.2,3402.6,0.8011]
[1732395501909,2.93842,3403.2,3402.6,3.74002]
[1732395502208,5.9383,3403.4,3402.8,0.8011]
[1732395502412,0.03673138,3403.3,3402.8,0.8011]
[1732395503121,2.93841,3403.2,3402.8,0.8011]
[1732395503424,2.93876,3402.8,3402.4,0.8011]
[1732395504039,0.14074263,3403.6,3403.0,2.93851]
[1732395504194,0.14074263,3403.6,3403.2,2.93835]
[1732395504520,0.14074263,3403.6,3403.3,2.9383]
[1732395505084,0.14074263,3403.6,3403.1,0.8011]
[1732395505685,0.45228847,3403.6,3403.1,0.8011]
[1732395506004,2.93824,3403.4,3403.1,0.8011]
[1732395506209,2.93815,3403.5,3402.9,0.8011]
[1732395506394,3.87931263,3403.6,3402.9,0.8011]
[1732395506599,0.38793126,3403.5,3402.9,0.8011]
[1732395506983,2.9383,3403.4,3402.9,0.8011]
[1732395508612,2.93832,3403.3,3402.9,0.8011]
[1732395510228,3.32614126,3403.5,3402.9,0.8011]
[1732395510433,2.93821,3403.5,3402.9,0.8011]
[1732395510929,2.93824,3403.4,3402.9,0.8011]
[1732395511530,0.14074263,3403.6,3402.3,2.82519489]
[1732395511692,0.14074263,3403.6,3403.2,0.793]
[1732395512028,3.07881263,3403.6,3403.2,0.793]
[1732395512196,0.34460844,3403.5,3403.2,0.793]
[1732395512396,2.93825,3403.4,3403.2,0.793]
[1732395512653,2.93825,3403.4,3402.6,2.93892]
[1732395512936,0.03673131,3403.3,3402.7,0.793]
[1732395513104,2.93832,3403.3,3402.7,0.793]
[1732395513829,2.93852,3403.1,3402.7,0.793]
[1732395514294,2.9386,3403.0,3402.7,0.793]
[1732395515520,2.93898,3402.6,3402.2,0.793]
[1732395516015,2.93918,3402.3,3402.2,0.793]
[1732395516218,2.93937,3402.1,3401.9,0.793]
[1732395516384,0.03674233,3402.7,3401.9,0.793]
[1732395516588,2.93904,3402.5,3401.9,0.793]
[1732395517017,3.0,3403.1,3401.9,3.73253]
[1732395517222,2.93893,3402.6,3401.9,3.73253]
[1732395518103,0.8003,3403.1,3402.2,0.793]
[1732395518427,2.93874,3402.9,3402.2,0.793]
[1732395518640,2.93874,3402.9,3402.2,3.73226]
[1732395520294,2.93874,3402.9,3402.2,0.793]
[1732395521216,2.93874,3402.9,3402.2,3.43831]
[1732395523859,0.8003,3403.4,3402.2,2.64531]
[1732395524062,2.93847,3403.2,3402.4,2.64517]
[1732395524263,2.93847,3403.2,3402.0,3.11849489]
[1732395524264,2.93861,3403.0,3402.5,0.7863]
[1732395526256,2.93878,3402.8,3402.5,0.7863]
[1732395526935,2.93867,3402.9,3402.5,0.7863]
[1732395527531,5.93779,3404.0,3402.5,0.7863]
[1732395527532,2.93853,3403.1,3402.5,0.7863]
[1732395528775,2.93853,3403.1,3402.5,0.81557014]
[1732395529399,2.93874,3402.9,3402.5,0.81557014]
[1732395529556,2.93853,3403.1,3402.5,0.81557014]
[1732395531651,0.90844263,3403.6,3402.5,0.81557014]
[1732395531863,2.93841,3403.2,3402.6,0.8022]
[1732395532298,2.93815,3403.5,3402.7,0.8022]
[1732395532601,2.93815,3403.5,3402.9,0.8022]
[1732395532814,0.14074263,3403.6,3403.0,3.44686]
[1732395533128,0.14074263,3403.6,3403.1,0.8022]
[1732395533876,0.14074263,3403.6,3403.1,0.83147014]
[1732395536303,0.14074263,3403.6,3403.2,2.64456]
[1732395536618,0.14074263,3403.6,3403.3,0.8022]
[1732395537011,0.14074263,3403.6,3403.3,0.83147014]
[1732395540962,2.93821,3403.5,3403.3,0.02927014]
[1732395541119,0.14074263,3403.6,3403.3,0.02927014]
[1732395541315,2.93823,3403.4,3403.3,0.02927014]
[1732395541511,3.70953,3403.4,3403.3,0.02927014]
[1732395541753,4.67457252,3403.4,3403.3,0.02927014]
[1732395541972,0.14074263,3403.6,3403.3,0.83147014]
[1732395542180,2.93816,3403.5,3403.3,0.83147014]
[1732395543175,2.93823,3403.4,3403.3,0.02927014]
[1732395543530,0.14074263,3403.6,3403.3,0.02927014]
[1732395544277,3.07881263,3403.6,3403.3,0.02927014]
[1732395545235,0.14074263,3403.6,3403.3,0.02927014]
[1732395545469,2.93822,3403.5,3403.3,0.02927014]
[1732395547762,2.93823,3403.4,3403.3,0.02927014]
[1732395548277,0.1774705,3403.6,3403.3,0.02927014]
[1732395548437,2.93816,3403.5,3403.3,0.02927014]
[1732395548973,2.93823,3403.4,3403.3,0.02927014]
[1732395550733,4.71890977,3403.4,3403.3,0.02927014]
[1732395550934,4.71891176,3403.4,3403.3,0.02927014]
[1732395551936,4.68217826,3403.4,3403.3,0.02927014]
[1732395553267,7.68217826,3403.4,3403.3,0.02927014]
[1732395559572,7.68217826,3403.4,3403.3,1.4e-07]
[1732395559887,0.7893,3402.4,3401.4,0.7593]
[1732395560094,2.93968,3401.8,3401.4,0.7593]
[1732395560395,2.93968,3401.8,3401.5,0.2933]
[1732395560745,3.72843,3402.4,3401.5,0.2933]
[1732395560746,2.93953,3401.9,3401.5,0.2933]
[1732395561244,0.7893,3402.8,3401.7,0.7593]
[1732395561477,2.93911,3402.4,3401.7,0.7593]
[1732395561899,2.93932,3402.2,3401.7,0.7593]
[1732395562048,2.93932,3402.2,3401.7,0.78857014]
[1732395562571,2.93947,3402.0,3401.7,0.78857014]
[1732395562889,2.93932,3402.2,3401.7,0.78857014]
[1732395563453,2.93919,3402.3,3401.7,0.78857014]
[1732395564085,2.93905,3402.5,3401.8,0.7593]
[1732395564293,3.72796,3403.0,3402.0,2.64548]
[1732395564294,2.93885,3402.7,3402.0,2.64548]
[1732395564590,2.93893,3402.6,3402.1,0.7593]
[1732395564947,2.93873,3402.9,3402.1,3.4047]
[1732395565149,3.7893,3403.3,3402.3,0.7593]
[1732395565345,2.93888,3402.7,3402.3,0.7593]
[1732395565949,2.93858,3403.0,3402.4,0.7593]
[1732395566375,2.93848,3403.2,3402.4,0.7593]
[1732395566691,2.93847,3403.2,3402.5,0.7593]
[1732395566886,2.93847,3403.2,3402.5,0.78857014]
[1732395567392,2.93827,3403.4,3402.5,0.78857014]
[1732395567393,2.93827,3403.4,3402.6,2.64498]
[1732395567590,2.93827,3403.4,3402.7,0.7593]
[1732395567795,2.93833,3403.3,3402.7,0.7593]
[1732395568755,2.93825,3403.4,3402.7,2.67422014]
[1732395568973,2.93825,3403.4,3402.8,0.7593]
[1732395569391,3.0,3403.5,3402.9,0.7593]
[1732395569697,3.07884263,3403.6,3402.9,0.7593]
[1732395570157,3.07884263,3403.6,3402.9,0.78857014]
[1732395570681,0.14074263,3403.6,3403.1,2.64464]
[1732395570885,0.14074263,3403.6,3403.2,0.7593]
[1732395571279,3.07882263,3403.6,3403.2,0.78857014]
[1732395572306,0.14074263,3403.6,3403.2,0.78857014]
[1732395572802,3.07881263,3403.6,3403.2,0.78857014]
[1732395573102,0.14074263,3403.6,3403.2,0.78857014]
[1732395574072,0.14074263,3403.6,3403.3,2.64448]
[1732395574304,0.14074263,3403.6,3403.4,0.7555]
[1732395576550,0.14074263,3403.6,3403.4,3.39991]
[1732395576840,0.14074263,3403.6,3403.4,0.7555]
[1732395577859,0.14074263,3403.6,3403.3,0.02927014]
[1732395578215,2.93823,3403.4,3403.3,0.02927014]
[1732395578419,0.14074263,3403.6,3403.3,0.02927014]
[1732395578611,2.93815,3403.5,3403.3,0.02927014]
[1732395579316,2.93823,3403.4,3403.3,0.02927014]
[1732395583606,3.61959847,3403.4,3403.3,0.02927014]
[1732395585385,3.07881263,3403.6,3403.3,0.02927014]
[1732395586386,0.14074263,3403.6,3403.3,0.02927014]
[1732395588702,0.14074263,3403.6,3403.5,2.35052]
[1732395588916,0.14074263,3403.6,3403.5,3.13529014]
[1732395589819,0.14074263,3403.6,3403.5,0.78477014]
[1732395590415,0.14074263,3403.6,3403.5,3.13529014]
[1732395590618,0.14074263,3403.6,3403.5,3.42859014]
[1732395593214,0.14074263,3403.6,3403.5,1.07807014]
[1732395594501,0.14074263,3403.6,3403.5,3.42859014]
[1732395601426,0.14074263,3403.6,3403.5,1.07807014]
[1732395601609,0.14074263,3403.6,3403.5,0.02927014]
[1732395602916,3.07880263,3403.6,3403.5,0.02927014]
[1732395603242,0.14074263,3403.6,3403.5,0.02927014]
[1732395607011,0.14074263,3403.6,3403.5,0.82057014]
[1732395608402,0.14074263,3403.6,3403.5,3.17109014]
[1732395610048,0.14074263,3403.6,3403.5,0.82057014]
[1732395610263,3.07880263,3403.6,3403.5,0.02927014]
[1732395610806,0.14074263,3403.6,3403.5,0.02927014]
[1732395611042,0.14074263,3403.6,3403.5,0.82057014]
[1732395611635,0.14074263,3403.6,3403.5,3.17109014]
[1732395612221,0.14074263,3403.6,3403.5,0.82057014]
[1732395612555,0.14074263,3403.6,3403.5,3.17109014]
[1732395613052,0.14074263,3403.6,3403.5,0.02927014]
[1732395613544,3.07880263,3403.6,3403.5,0.02927014]
[1732395613723,3.63373188,3403.6,3403.5,0.02927014]
[1732395614151,3.07880263,3403.6,3403.5,0.02927014]
[1732395615240,3.11552802,3403.6,3403.5,0.02927014]
[1732395615847,3.07880263,3403.6,3403.5,0.02927014]
[1732395619411,0.14074263,3403.6,3403.5,0.02927014]
[1732395620156,3.07880263,3403.6,3403.5,0.02927014]
[1732395628259,3.11553076,3403.6,3403.5,0.02927014]
[1732395628460,3.79627423,3403.6,3403.5,0.02927014]
[1732395628760,4.56667423,3403.6,3403.5,0.02927014]
[1732395628963,5.80810215,3403.6,3403.5,0.02927014]
[1732395630664,4.56667423,3403.6,3403.5,0.02927014]
[1732395632173,4.56667423,3403.6,3402.2,0.2933]
[1732395632174,2.93918,3402.3,3402.2,0.2933]
[1732395632325,2.93918,3402.3,3401.4,2.82514455]
[1732395632326,2.93938,3402.1,3401.9,0.8269]
[1732395633240,0.03674078,3402.5,3401.6,1.1202]
[1732395633425,5.87854,3402.2,3401.2,1.1202]
[1732395633622,2.93979,3401.7,3401.6,0.02927014]
[1732395634371,2.97653987,3401.7,3401.6,0.02927014]
[1732395636372,2.93979,3401.7,3401.6,0.02927014]
[1732395640748,4.43230413,3401.7,3401.6,0.02927014]
[1732395642556,3.75879,3401.7,3401.6,0.02927014]
[1732395646591,2.93979,3401.7,3401.6,0.02927014]
[1732395648187,2.9396,3401.9,3401.6,0.02927014]
[1732395649099,2.9397,3401.7,3401.6,0.02927014]
[1732395653458,3.75839,3402.1,3401.6,0.02927014]
[1732395653684,0.7783,3402.3,3401.7,0.7841]
[1732395653878,2.93952,3402.0,3401.7,0.7841]
[1732395654077,2.93955,3401.9,3401.7,0.7841]
[1732395654385,2.93955,3401.9,3401.6,0.02927014]
[1732395654601,2.93962,3401.8,3401.7,0.02927014]
[1732395657490,2.93952,3402.0,3401.7,0.02927014]
[1732395657873,2.93954,3401.9,3401.7,0.02927014]
[1732395658070,2.93929,3402.2,3401.7,0.02927014]
[1732395658297,0.7783,3402.6,3401.8,0.7841]
[1732395658498,2.9391,3402.4,3401.8,3.16506014]
[1732395659026,2.93937,3402.1,3401.8,0.81337014]
[1732395659230,0.29391,3402.4,3401.8,0.81337014]
[1732395659373,2.93927,3402.3,3401.8,0.81337014]
[1732395659721,2.93927,3402.2,3401.8,0.81337014]
[1732395660413,2.93922,3402.3,3401.8,0.81337014]
[1732395661222,2.93902,3402.5,3401.8,3.16506014]
[1732395661435,2.93901,3402.5,3401.9,0.8199]
[1732395661617,0.8325,3403.0,3401.9,0.8199]
[1732395661618,2.93866,3402.9,3401.9,0.8199]
[1732395661927,0.8375,3403.5,3402.4,3.17117]
[1732395662082,2.93863,3403.0,3402.4,3.17117]
[1732395662413,2.93863,3403.0,3402.4,3.20044014]
[1732395662808,3.77569,3403.5,3402.7,3.17096]
[1732395663008,0.005,3403.5,3402.9,2.35091]
[1732395663194,0.005,3403.5,3403.0,0.8199]
[1732395663715,0.005,3403.5,3403.0,0.79955796]
[1732395663879,2.93824,3403.4,3403.0,0.79955796]
[1732395664076,2.93832,3403.3,3403.0,0.8288281]
[1732395665618,2.94316,3403.5,3403.0,0.8288281]
[1732395665930,2.93825,3403.4,3403.0,0.8288281]
[1732395666086,2.93833,3403.3,3403.0,0.8288281]
[1732395666809,2.94319,3403.5,3403.0,0.8288281]
[1732395667009,2.94322,3403.5,3403.0,0.8288281]
[1732395668110,0.005,3403.5,3403.0,0.8288281]
[1732395668284,0.005,3403.5,3403.2,2.35071]
[1732395669829,0.005,3403.5,3403.3,0.8199]
[1732395669993,0.005,3403.5,3403.3,3.17055]
[1732395670324,0.005,3403.5,3403.3,3.19982014]
[1732395670507,0.005,3403.5,3403.4,2.35059]
[1732395671437,0.005,3403.5,3403.4,3.17049]
[1732395674303,0.005,3403.5,3403.4,3.46379]
[1732395674600,0.005,3403.5,3403.4,0.8199]
[1732395674796,2.93823,3403.4,3403.3,0.02927014]